bitfinex/quotes_ETHUSD_20250726
["timestamp","ask_amount","ask_price","bid_price","bid_amount"]
[1753537908865,35.435,3750.7,3750.6,0.7566]
[1753537909095,35.435,3750.7,3750.6,1.6559]
[1753537909894,33.0,3750.5,3750.4,0.4516]
[1753537910198,33.0,3750.4,3750.3,0.7566]
[1753537910694,33.0,3750.4,3750.3,1.6559]
[1753537911963,30.0,3750.2,3750.1,0.1336]
[1753537912163,33.0,3750.2,3750.1,0.1336]
[1753537912364,35.434,3750.2,3750.1,0.1336]
[1753537912558,35.434,3750.2,3750.1,0.5852]
[1753537912766,35.434,3750.2,3750.1,1.0329]
[1753537913821,35.434,3750.2,3750.1,3.69949555]
[1753537914022,0.1336,3750.6,3750.3,2.66645335]
[1753537914023,3.0,3750.4,3750.3,2.66645335]
[1753537914209,2.66587422,3751.2,3750.4,2.66632088]
[1753537914210,33.0,3750.5,3750.4,2.66632088]
[1753537914414,5.434,3750.5,3750.4,3.69922088]
[1753537915100,5.434,3750.5,3750.4,1.0329]
[1753537917795,5.434,3750.5,3750.4,0.1336]
[1753537918127,35.434,3750.5,3750.4,0.1336]
[1753537918437,36.2584,3750.5,3750.4,0.1336]
[1753537918587,30.0,3750.3,3749.7,2.66687646]
[1753537918792,2.434,3750.2,3750.0,0.4516]
[1753537919031,2.434,3750.1,3750.0,0.4516]
[1753537919198,2.434,3750.1,3749.8,0.1336]
[1753537919386,5.8892,3750.1,3750.0,0.001]
[1753537919925,5.434,3750.1,3750.0,0.4526]
[1753537920328,35.434,3750.1,3750.0,0.001]
[1753537920499,38.55579555,3750.1,3750.0,0.001]
[1753537921754,39.49609555,3750.1,3750.0,0.001]
[1753537921897,39.62969555,3750.1,3750.0,0.001]
[1753537922226,39.23939555,3750.1,3750.0,0.001]
[1753537922411,39.71973466,3750.1,3750.0,0.001]
[1753537922930,40.7654149,3750.1,3750.0,0.001]
[1753537924608,10.7654149,3750.1,3750.0,0.001]
[1753537924924,40.7654149,3750.1,3750.0,0.001]
[1753537927024,40.3751149,3750.1,3750.0,0.001]
[1753537927321,38.87423466,3750.1,3750.0,0.001]
[1753537927501,38.78419555,3750.1,3750.0,0.4526]
[1753537928692,38.78419555,3750.1,3750.0,0.001]
[1753537930137,38.78419555,3750.1,3750.0,0.4526]
[1753537930138,33.6836,3750.1,3750.0,0.4526]
[1753537930338,36.1186,3750.1,3750.0,0.4526]
[1753537930705,38.78519555,3750.1,3750.0,0.4526]
[1753537931104,36.35019555,3750.1,3750.0,0.4526]
[1753537931329,38.78519555,3750.1,3750.0,0.4526]
[1753537931723,36.1186,3750.1,3750.0,0.4526]
[1753537932236,38.78519555,3750.1,3750.0,0.4526]
[1753537932604,8.78519555,3750.1,3750.0,0.4526]
[1753537932804,38.78519555,3750.1,3750.0,0.4526]
[1753537933000,36.1186,3750.1,3750.0,0.4526]
[1753537933200,38.78519555,3750.1,3750.0,0.4526]
[1753537934346,38.78419555,3750.1,3750.0,0.4526]
[1753537934542,38.78419555,3750.1,3750.0,0.078413]
[1753537934926,33.0,3749.9,3749.6,0.4524]
[1753537935240,33.0,3749.7,3749.6,0.4524]
[1753537936309,35.434,3749.7,3749.6,0.4524]
[1753537936508,35.434,3749.7,3749.6,0.9152]
[1753537937118,33.0,3749.7,3749.6,0.9152]
[1753537937326,35.434,3749.7,3749.6,0.9152]
[1753537937533,5.434,3749.7,3749.6,0.9152]
[1753537937748,0.1336,3749.9,3749.6,1.7165]
[1753537937908,33.0,3749.7,3749.6,3.92262452]
[1753537938108,33.0,3749.7,3749.6,4.05622452]
[1753537938601,33.0,3749.7,3749.6,4.97142452]
[1753537939236,35.434,3749.7,3749.6,4.97142452]
[1753537939439,0.1336,3750.1,3749.8,2.66680777]
[1753537939757,35.434,3750.0,3749.9,3.46798576]
[1753537939963,3.0,3750.2,3750.1,2.66659555]
[1753537940253,2.434,3750.2,3750.1,0.9152]
[1753537940957,35.434,3750.2,3750.1,0.4628]
[1753537942055,33.0,3750.1,3750.0,0.001]
[1753537943547,33.4306,3750.1,3750.0,0.001]
[1753537943745,33.9199,3750.1,3750.0,0.001]
[1753537943955,36.72009555,3750.1,3750.0,0.001]
[1753537944339,38.05339555,3750.1,3750.0,0.001]
[1753537944577,38.39292404,3750.1,3750.0,0.001]
[1753537944779,40.82692404,3750.1,3750.0,0.001]
[1753537945093,40.57740491,3750.1,3750.0,0.001]
[1753537945248,40.82695924,3750.1,3750.0,0.001]
[1753537947086,40.82699994,3750.1,3750.0,0.001]
[1753537953010,40.82727116,3750.1,3750.0,0.001]
[1753537953523,37.90397116,3750.1,3750.0,0.001]
[1753537953818,9.90737116,3750.1,3750.0,0.001]
[1753537954209,39.90737116,3750.1,3750.0,0.001]
[1753537954607,40.33797116,3750.1,3750.0,0.001]
[1753537954808,40.82727116,3750.1,3750.0,0.001]
[1753537955006,34.02347561,3750.1,3750.0,0.001]
[1753537955206,9.12407116,3750.1,3750.0,0.001]
[1753537955435,34.02347561,3750.1,3750.0,0.4638]
[1753537955715,35.5676,3750.1,3750.0,0.9162]
[1753537955886,35.434,3750.1,3750.0,0.9162]
[1753537956090,3.0,3750.1,3750.0,3.58286666]
[1753537956302,3.9776,3750.4,3750.1,2.66659394]
[1753537956303,30.0,3750.3,3750.1,2.66659394]
[1753537956502,2.434,3750.2,3750.1,3.44429394]
[1753537957108,2.434,3750.2,3750.1,4.35949394]
[1753537957418,3.0,3750.3,3750.2,2.66652445]
[1753537957640,3.0,3750.3,3750.2,3.58172445]
[1753537957641,32.434,3750.3,3750.2,3.58172445]
[1753537957826,35.434,3750.3,3750.2,0.9152]
[1753537958241,35.434,3750.3,3750.2,3.58172445]
[1753537958406,35.434,3750.3,3750.2,0.9152]
[1753537959742,35.434,3750.3,3750.2,0.4628]
[1753537960039,35.52411784,3750.3,3750.2,0.4628]
[1753537960216,30.0,3750.2,3750.1,0.1336]
[1753537960624,30.0,3750.2,3750.1,0.5964]
[1753537961658,30.0,3750.2,3750.1,1.0488]
[1753537961825,32.434,3750.2,3750.1,2.27591367]
[1753537962011,30.0,3750.2,3750.1,4.94250922]
[1753537962212,3.0,3750.5,3750.4,2.66637234]
[1753537962406,35.434,3750.5,3750.4,3.11167234]
[1753537962611,35.434,3750.5,3750.4,3.72167234]
[1753537962912,32.434,3750.5,3750.4,5.2609031]
[1753537963112,32.434,3750.5,3750.4,2.59453076]
[1753537963312,32.434,3750.5,3750.4,4.49938225]
[1753537963823,32.434,3750.5,3750.4,1.833]
[1753537965744,32.434,3750.5,3750.4,4.49938225]
[1753537966149,33.0,3750.6,3750.5,2.66631115]
[1753537966319,35.434,3750.6,3750.5,3.58801115]
[1753537967158,33.0,3750.6,3750.5,3.58801115]
[1753537967336,35.434,3750.6,3750.5,0.9217]
[1753537969367,5.434,3750.6,3750.5,0.9217]
[1753537969566,35.434,3750.6,3750.5,0.9217]
[1753537971042,35.434,3750.6,3750.5,3.58801115]
[1753537971043,32.434,3750.6,3750.5,3.58801115]
[1753537971254,32.434,3750.6,3750.5,0.9217]
[1753537973536,2.434,3750.6,3750.5,0.9217]
[1753537973732,32.434,3750.6,3750.5,0.9217]
[1753537973998,30.0,3750.6,3750.5,0.9217]
[1753537974202,32.433,3750.6,3750.5,0.9217]
[1753537975166,32.433,3750.6,3750.5,0.4764]
[1753537975702,2.433,3750.6,3750.5,0.4764]
[1753537975903,32.433,3750.6,3750.5,0.4764]
[1753537976303,32.433,3750.6,3750.5,0.9217]
[1753537977477,30.0,3750.6,3750.5,0.4764]
[1753537977813,30.0,3750.5,3750.4,0.1336]
[1753537982417,30.0,3750.5,3750.4,0.61]
[1753537984321,32.433,3750.5,3750.4,0.61]
[1753537988327,30.0,3750.5,3750.4,0.61]
[1753537988625,32.433,3750.5,3750.4,0.61]
[1753537988801,32.433,3750.5,3750.4,0.1336]
[1753537989946,32.433,3750.5,3750.4,0.61]
[1753537991341,32.433,3750.5,3750.4,0.1336]
[1753537991742,32.867,3750.5,3750.4,0.1336]
[1753537991948,2.867,3750.5,3750.4,0.1336]
[1753537992259,32.867,3750.5,3750.4,0.1336]
[1753537992845,2.66643354,3750.4,3750.0,0.001]
[1753537993045,30.0,3750.2,3750.0,0.1346]
[1753537993252,32.432,3750.1,3750.0,0.1346]
[1753537993568,32.8621,3750.1,3750.0,0.1346]
[1753537994157,32.432,3750.1,3750.0,0.1346]
[1753537994364,2.432,3750.1,3750.0,0.5959]
[1753537994560,3.1356,3750.6,3750.0,4.01806666]
[1753537994729,30.0,3750.4,3750.0,4.50283332]
[1753537995066,30.0,3750.5,3750.3,2.66640139]
[1753537995217,30.0,3750.5,3750.4,0.1336]
[1753537995554,32.432,3750.5,3750.4,4.47488225]
[1753537995719,32.432,3750.5,3750.4,1.8085]
[1753538000128,32.432,3750.5,3750.4,4.47488225]
[1753538000828,30.0,3750.5,3750.4,4.47488225]
[1753538001059,32.432,3750.5,3750.4,4.47488225]
[1753538002243,2.432,3750.5,3750.4,4.47488225]
[1753538002967,0.002,3750.6,3750.5,2.66631115]
[1753538003265,2.434,3750.6,3750.5,3.58571115]
[1753538003885,2.434,3750.6,3750.5,0.4613]
[1753538004850,2.434,3750.6,3750.4,0.1336]
[1753538005077,30.0,3750.5,3750.4,0.1336]
[1753538005251,30.4301,3750.5,3750.4,0.1336]
[1753538005980,30.0,3750.5,3750.4,0.1336]
[1753538008154,30.4301,3750.5,3750.1,3.48618061]
[1753538008357,2.8621,3750.4,3750.2,0.1336]
[1753538013175,2.432,3750.4,3750.2,0.1336]
[1753538013894,2.432,3750.4,3750.3,3.12775335]
[1753538014106,2.432,3750.4,3750.3,0.4613]
[1753538015384,2.432,3750.4,3750.2,0.1336]
[1753538015580,2.432,3750.4,3750.2,0.5949]
[1753538016382,2.432,3750.4,3750.2,0.1336]
[1753538019114,2.8621,3750.4,3750.2,0.1336]
[1753538019915,0.4301,3750.4,3750.2,2.80011492]
[1753538020217,2.431,3750.3,3750.2,2.80011492]
[1753538020419,2.431,3750.3,3750.2,0.1336]
[1753538021189,2.431,3750.3,3750.2,2.80012445]
[1753538021397,2.431,3750.3,3750.2,0.1336]
[1753538024525,2.431,3750.3,3750.2,2.80012445]
[1753538024997,2.431,3750.3,3750.2,3.25712445]
[1753538026299,2.431,3750.3,3750.2,3.69572445]
[1753538026708,2.431,3750.3,3750.2,3.25712445]
[1753538033308,2.431,3750.3,3750.2,2.80012445]
[1753538033814,2.431,3750.3,3750.2,0.1336]
[1753538034915,3.3838,3750.3,3750.2,0.1336]
[1753538035362,2.8997,3750.3,3750.2,0.1336]
[1753538035655,2.431,3750.3,3750.2,0.1336]
[1753538035858,2.8997,3750.3,3750.2,0.1336]
[1753538036358,3.3838,3750.3,3750.2,0.1336]
[1753538036564,33.3838,3750.3,3750.0,0.001]
[1753538036771,30.0,3750.2,3750.0,0.001]
[1753538037064,0.9528,3750.2,3750.0,0.001]
[1753538037230,2.5646,3750.3,3750.0,0.001]
[1753538037433,0.9528,3750.1,3750.0,0.001]
[1753538040687,0.4687,3750.1,3750.0,0.001]
[1753538040848,30.0,3750.2,3750.0,0.001]
[1753538041189,0.9528,3750.2,3750.0,0.001]
[1753538041383,0.4841,3750.2,3750.0,0.001]
[1753538041701,3.93029555,3750.1,3750.0,0.001]
[1753538041906,4.54799555,3750.1,3750.0,0.001]
[1753538043117,34.54799555,3750.1,3750.0,0.001]
[1753538045134,38.89225678,3750.1,3750.0,0.001]
[1753538045978,39.04434887,3750.1,3750.0,0.001]
[1753538046178,42.51303906,3750.1,3750.0,0.001]
[1753538046997,12.51303906,3750.1,3750.0,0.001]
[1753538047175,42.51303906,3750.1,3750.0,0.001]
[1753538048617,44.94303906,3750.1,3750.0,0.001]
[1753538050597,45.49303906,3750.1,3750.0,0.001]
[1753538052002,15.49303906,3750.1,3750.0,0.001]
[1753538052203,45.49303906,3750.1,3750.0,0.001]
[1753538052743,37.21597783,3750.1,3750.0,0.001]
[1753538052939,39.17728764,3750.1,3750.0,0.4908]
[1753538053125,39.17728764,3750.1,3750.0,0.001]
[1753538054060,40.11218764,3750.1,3750.0,0.001]
[1753538055938,40.66218764,3750.1,3750.0,0.001]
[1753538056650,40.51009555,3750.1,3750.0,0.001]
[1753538058250,32.66688001,3749.7,3749.6,0.001]
[1753538058554,35.23048001,3749.7,3749.6,0.001]
[1753538061569,5.23048001,3749.7,3749.6,0.001]
[1753538061728,35.23048001,3749.7,3749.6,0.001]
[1753538064564,5.23048001,3749.7,3749.6,0.001]
[1753538064788,35.23048001,3749.7,3749.6,0.001]
[1753538065684,5.70098001,3749.7,3749.6,0.001]
[1753538065837,36.98018001,3749.7,3749.6,0.001]
[1753538066243,36.50968001,3749.7,3749.6,0.001]
[1753538066438,32.5636,3749.7,3749.6,0.4908]
[1753538066644,5.23048001,3749.7,3749.6,0.4908]
[1753538066858,35.23048001,3749.7,3749.6,0.4908]
[1753538067278,5.23048001,3749.7,3749.6,0.4908]
[1753538067476,35.23048001,3749.7,3749.6,0.4908]
[1753538069697,5.23048001,3749.7,3749.6,0.4908]
[1753538069990,35.23048001,3749.7,3749.6,0.4908]
[1753538070757,35.23048001,3749.7,3749.6,0.001]
[1753538071788,5.23048001,3749.7,3749.6,0.001]
[1753538071990,35.23048001,3749.7,3749.6,0.001]
[1753538072891,5.23048001,3749.7,3749.6,0.001]
[1753538073068,30.0,3749.6,3749.4,0.33970791]
[1753538073397,30.0,3749.6,3749.5,1.2393]
[1753538073398,0.1336,3749.6,3749.5,1.2393]
[1753538073692,2.5636,3749.6,3749.5,1.2393]
[1753538075096,2.5636,3749.6,3749.5,1.7291]
[1753538075471,2.5636,3749.6,3749.2,3.4349288]
[1753538075679,2.5636,3749.6,3749.3,0.9614]
[1753538075990,30.0,3749.5,3749.4,0.9614]
[1753538078197,30.0,3749.4,3749.0,0.4898]
[1753538078408,2.429,3749.3,3749.1,0.4898]
[1753538078609,2.429,3749.3,3749.0,0.4716]
[1753538078913,2.429,3749.3,3749.2,0.4898]
[1753538080173,2.429,3749.3,3749.0,0.4716]
[1753538080373,2.429,3749.3,3749.0,0.4898]
[1753538080574,2.8995,3749.3,3749.0,0.4898]
[1753538080892,2.429,3749.3,3748.8,0.001]
[1753538081097,2.8995,3749.3,3748.9,0.4898]
[1753538081294,0.4705,3749.2,3748.8,0.001]
[1753538081473,2.5626,3749.1,3748.8,0.4908]
[1753538082601,30.0,3749.0,3748.8,0.001]
[1753538082811,2.429,3748.9,3748.8,0.001]
[1753538083214,2.429,3748.9,3748.8,0.4785]
[1753538086327,36.04314911,3748.9,3748.8,0.001]
[1753538086616,36.43300911,3748.9,3748.8,0.001]
[1753538088619,6.43300911,3748.9,3748.8,0.001]
[1753538088917,45.15397034,3748.9,3748.8,0.001]
[1753538090597,42.72497034,3748.9,3748.8,0.001]
[1753538090726,40.80970911,3748.9,3748.8,0.001]
[1753538091606,10.80970911,3748.9,3748.8,0.001]
[1753538091937,40.80970911,3748.9,3748.8,0.001]
[1753538092108,38.38070911,3748.9,3748.8,0.001]
[1753538092305,35.71326,3748.9,3748.8,0.001]
[1753538092530,38.14226,3748.9,3748.8,0.001]
[1753538093532,40.80970911,3748.9,3748.8,0.001]
[1753538094453,35.5626,3748.9,3748.8,0.4785]
[1753538094654,35.5626,3748.9,3748.8,0.9427]
[1753538096237,33.1336,3748.9,3748.8,0.9427]
[1753538096406,35.5626,3748.9,3748.8,0.9427]
[1753538096606,32.5626,3748.9,3748.8,0.9427]
[1753538097242,30.1336,3748.9,3748.8,0.9427]
[1753538097544,30.1336,3748.9,3748.8,1.722]
[1753538097869,3.0,3749.5,3748.9,2.66739697]
[1753538098155,3.0,3749.5,3749.0,0.4775]
[1753538098156,30.0,3749.3,3749.0,0.4775]
[1753538098307,0.1336,3749.1,3749.0,0.4775]
[1753538098506,30.0,3749.0,3748.8,0.4785]
[1753538098756,32.429,3748.9,3748.8,0.4785]
[1753538099355,35.09644911,3748.9,3748.8,0.001]
[1753538099503,36.17674911,3748.9,3748.8,0.001]
[1753538102443,39.17674911,3748.9,3748.8,0.001]
[1753538102649,39.72674911,3748.9,3748.8,0.001]
[1753538104140,38.23004911,3748.9,3748.8,0.001]
[1753538108117,38.70884911,3748.9,3748.8,0.001]
[1753538108548,8.70884911,3748.9,3748.8,0.001]
[1753538108717,38.70884911,3748.9,3748.8,0.001]
[1753538108917,39.17674911,3748.9,3748.8,0.001]
[1753538111548,38.23004911,3748.9,3748.8,0.001]
[1753538111718,38.69794911,3748.9,3748.8,0.001]
[1753538111925,39.17674911,3748.9,3748.8,0.001]
[1753538113466,38.23004911,3748.9,3748.8,0.001]
[1753538114378,38.23004911,3748.9,3748.8,0.9529]
[1753538114558,38.23004911,3748.9,3748.8,0.4823]
[1753538115347,38.23004911,3748.9,3748.8,0.001]
[1753538119965,8.23004911,3748.9,3748.8,0.001]
[1753538120267,38.23004911,3748.9,3748.8,0.001]
[1753538121985,39.97934911,3748.9,3748.8,0.001]
[1753538124342,39.51514911,3748.9,3748.8,0.001]
[1753538124541,39.06134911,3748.9,3748.8,0.001]
[1753538126378,39.97934911,3748.9,3748.8,0.001]
[1753538127953,40.06944892,3748.9,3748.8,0.001]
[1753538128648,40.61944892,3748.9,3748.8,0.001]
[1753538130158,10.61944892,3748.9,3748.8,0.001]
[1753538130354,40.61944892,3748.9,3748.8,0.001]
[1753538131371,40.86938952,3748.9,3748.8,0.001]
[1753538134353,10.86938952,3748.9,3748.8,0.001]
[1753538134555,40.86938952,3748.9,3748.8,0.001]
[1753538136386,10.61944892,3748.9,3748.8,0.001]
[1753538136568,40.61944892,3748.9,3748.8,0.001]
[1753538139189,39.70144892,3748.9,3748.8,0.001]
[1753538140467,9.70144892,3748.9,3748.8,0.001]
[1753538140669,39.70144892,3748.9,3748.8,0.001]
[1753538142761,39.9053522,3748.9,3748.8,0.001]
[1753538143773,39.81525239,3748.9,3748.8,0.001]
[1753538144304,40.75225239,3748.9,3748.8,0.001]
[1753538144492,39.81525239,3748.9,3748.8,0.001]
[1753538145070,9.81525239,3748.9,3748.8,0.001]
[1753538145266,39.81525239,3748.9,3748.8,0.001]
[1753538145596,40.75225239,3748.9,3748.8,0.001]
[1753538146597,41.00227821,3748.9,3748.8,0.001]
[1753538146815,10.75225239,3748.9,3748.8,0.001]
[1753538147093,41.00228283,3748.9,3748.8,0.001]
[1753538147463,40.53658283,3748.9,3748.8,0.001]
[1753538147665,40.06528283,3748.9,3748.8,0.001]
[1753538148987,40.53658283,3748.9,3748.8,0.001]
[1753538149420,40.06528283,3748.9,3748.8,0.001]
[1753538150463,40.06531124,3748.9,3748.8,0.001]
[1753538150888,40.1554787,3748.9,3748.8,0.001]
[1753538151712,40.6267787,3748.9,3748.8,0.001]
[1753538152408,40.1554787,3748.9,3748.8,0.001]
[1753538153006,10.1554787,3748.9,3748.8,0.001]
[1753538153205,40.1554787,3748.9,3748.8,0.001]
[1753538155481,41.0924787,3748.9,3748.8,0.001]
[1753538155879,41.0914787,3748.9,3748.8,0.001]
[1753538156505,40.84141985,3748.9,3748.8,0.001]
[1753538156714,41.09153858,3748.9,3748.8,0.001]
[1753538159221,11.09153858,3748.9,3748.8,0.001]
[1753538159524,41.09157048,3748.9,3748.8,0.001]
[1753538162011,33.21801846,3748.1,3748.0,0.001]
[1753538162211,38.64501846,3748.1,3748.0,0.4819]
[1753538162424,38.77861846,3748.1,3748.0,0.4819]
[1753538162925,8.77861846,3748.1,3748.0,0.4819]
[1753538163095,38.77861846,3748.1,3748.0,0.4819]
[1753538163494,8.77861846,3748.1,3748.0,0.001]
[1753538163691,38.77861846,3748.1,3748.0,0.001]
[1753538164026,43.12287969,3748.1,3748.0,0.001]
[1753538164324,44.81147969,3748.1,3748.0,0.001]
[1753538167709,14.81147969,3748.1,3748.0,0.001]
[1753538167909,44.81147969,3748.1,3748.0,0.001]
[1753538168109,44.34577969,3748.1,3748.0,0.001]
[1753538168309,44.81147969,3748.1,3748.0,0.001]
[1753538169899,44.90153102,3748.1,3748.0,0.001]
[1753538171013,45.15124103,3748.1,3748.0,0.001]
[1753538171711,15.15124103,3748.1,3748.0,0.001]
[1753538172003,45.15124103,3748.1,3748.0,0.001]
[1753538172213,36.1413798,3748.1,3748.0,0.001]
[1753538172395,32.5606,3748.1,3748.0,1.6777]
[1753538172600,30.1336,3748.1,3748.0,1.6777]
[1753538172801,35.5606,3748.1,3748.0,1.6777]
[1753538173725,8.22861846,3748.1,3748.0,1.6777]
[1753538174052,38.22861846,3748.1,3748.0,1.6777]
[1753538174746,38.77861846,3748.1,3748.0,0.001]
[1753538174924,38.86857764,3748.1,3748.0,0.001]
[1753538175125,40.04351559,3748.1,3748.0,0.001]
[1753538175339,39.79397764,3748.1,3748.0,0.001]
[1753538175936,9.79397764,3748.1,3748.0,0.001]
[1753538176111,39.79397764,3748.1,3748.0,0.001]
[1753538176516,38.86857764,3748.1,3748.0,0.001]
[1753538176973,38.86857764,3748.1,3748.0,0.4782]
[1753538177155,38.86857764,3748.1,3748.0,0.001]
[1753538177333,38.77861846,3748.1,3748.0,0.001]
[1753538177527,38.86852784,3748.1,3748.0,0.001]
[1753538177852,39.33492784,3748.1,3748.0,0.001]
[1753538178037,39.79392784,3748.1,3748.0,0.001]
[1753538179037,39.70401846,3748.1,3748.0,0.001]
[1753538179351,39.79391698,3748.1,3748.0,0.001]
[1753538183154,39.79391698,3748.1,3748.0,0.001]
[1753538184369,38.86851698,3748.1,3748.0,0.001]
[1753538185442,38.77861846,3748.1,3748.0,0.001]
[1753538187736,36.35161846,3748.1,3748.0,0.001]
[1753538187939,30.1336,3748.1,3748.0,0.9149]
[1753538188244,2.5606,3748.1,3748.0,0.9149]
[1753538188447,35.5606,3748.1,3748.0,0.9149]
[1753538189259,8.22861846,3748.1,3748.0,0.9149]
[1753538189478,38.22861846,3748.1,3748.0,0.9149]
[1753538191157,30.1336,3748.1,3748.0,0.9149]
[1753538191363,32.5606,3748.1,3748.0,1.08387]
[1753538192329,30.1336,3748.1,3748.0,1.08387]
[1753538192525,32.5606,3748.1,3748.0,1.89037]
[1753538194167,30.1336,3748.1,3748.0,1.89037]
[1753538194484,32.5606,3748.1,3748.0,1.89037]
[1753538196184,30.1336,3748.1,3748.0,1.89037]
[1753538196387,32.5606,3748.1,3748.0,1.89037]
[1753538201287,32.5606,3748.1,3748.0,1.2847]
[1753538201288,35.22861846,3748.1,3748.0,1.2847]
[1753538202363,32.5606,3748.1,3748.0,1.2847]
[1753538202564,32.5606,3748.1,3748.0,1.7127]
[1753538204303,30.1336,3748.1,3748.0,4.38078964]
[1753538204473,32.5606,3748.1,3748.0,4.38078964]
[1753538204817,3.0,3748.6,3748.1,2.66800509]
[1753538204962,30.0,3748.3,3748.2,3.4655302]
[1753538205169,30.0,3748.3,3748.2,3.8935302]
[1753538205170,32.427,3748.3,3748.2,3.8935302]
[1753538205383,2.427,3748.3,3748.2,4.3885302]
[1753538205607,2.427,3748.3,3748.2,5.17814283]
[1753538206709,2.427,3748.3,3748.2,5.19964283]
[1753538207109,30.0,3749.3,3748.7,0.8191]
[1753538207271,0.1336,3748.9,3748.7,3.48667704]
[1753538207470,0.1336,3748.9,3748.8,0.923]
[1753538207714,2.5596,3748.9,3748.8,1.3639709]
[1753538208267,2.5596,3748.9,3748.8,0.923]
[1753538208471,0.1336,3748.9,3748.8,3.59052027]
[1753538208704,2.5596,3748.9,3748.8,3.59052027]
[1753538209281,2.426,3748.9,3748.8,3.59052027]
[1753538209809,2.426,3748.9,3748.8,0.923]
[1753538210104,2.426,3748.9,3748.8,0.77345877]
[1753538210308,32.426,3748.9,3748.7,0.8191]
[1753538210514,30.0,3748.8,3748.7,0.8191]
[1753538211619,30.0,3748.8,3748.7,1.3141]
[1753538213115,30.0,3748.8,3748.7,3.48669143]
[1753538213314,30.0,3748.8,3748.7,0.8191]
[1753538213999,30.0,3748.8,3748.7,1.3141]
[1753538214676,2.426,3748.9,3748.7,1.3141]
[1753538215007,2.426,3748.9,3747.0,4.34426123]
[1753538215008,30.0,3748.7,3748.3,0.8191]
[1753538215201,30.0,3748.5,3748.3,1.3141]
[1753538215403,2.426,3748.4,3748.3,3.98196748]
[1753538216226,2.426,3748.4,3748.3,5.13122806]
[1753538217277,0.1336,3748.6,3748.5,2.66773376]
[1753538217478,0.1336,3748.9,3748.5,0.82417733]
[1753538217679,0.1336,3748.9,3748.8,3.46502027]
[1753538218012,2.5596,3748.9,3748.8,4.38802027]
[1753538218188,2.5596,3748.9,3748.8,1.7205]
[1753538219621,0.1336,3748.9,3748.8,1.7205]
[1753538219920,2.5596,3748.9,3748.8,4.38802027]
[1753538220992,0.002,3749.4,3748.9,2.66741088]
[1753538221289,30.1336,3749.1,3749.0,0.495]
[1753538225137,32.5596,3749.1,3749.0,0.495]
[1753538226229,2.426,3749.1,3749.0,0.923]
[1753538226625,2.426,3749.1,3749.0,0.495]
[1753538228034,2.426,3749.1,3748.8,0.7975]
[1753538228329,2.921,3749.1,3748.8,0.7975]
[1753538228514,3.3504,3749.1,3748.8,0.7975]
[1753538229731,2.426,3749.1,3748.8,0.7975]
[1753538229927,2.426,3749.1,3748.9,0.495]
[1753538230440,2.426,3749.1,3749.0,0.495]
[1753538231344,2.426,3749.1,3748.8,4.13444346]
[1753538231699,2.426,3749.1,3748.9,0.495]
[1753538233037,30.0,3749.1,3749.0,0.9351]
[1753538233203,2.425,3749.1,3749.0,0.9351]
[1753538233420,2.425,3749.1,3749.0,0.4761]
[1753538235156,2.425,3749.1,3748.8,4.40011791]
[1753538235361,2.425,3749.1,3748.9,0.4761]
[1753538238071,2.425,3749.1,3748.8,0.7975]
[1753538238424,2.425,3749.1,3748.8,1.2736]
[1753538240062,2.425,3749.1,3748.8,3.94107051]
[1753538241677,2.425,3749.1,3748.9,0.4761]
[1753538245893,0.9282,3749.0,3748.7,0.1336]
[1753538246563,0.9319,3748.8,3748.1,2.80156733]
[1753538246777,0.1336,3748.6,3748.1,0.1336]
[1753538247158,0.9282,3748.5,3748.1,0.1336]
[1753538247358,0.9282,3748.5,3748.1,3.27770002]
[1753538247782,0.9282,3748.5,3748.2,0.4761]
[1753538250386,0.9282,3748.5,3748.1,0.1336]
[1753538250687,0.9282,3748.4,3748.1,0.1336]
[1753538250893,0.4734,3748.4,3748.1,0.1336]
[1753538251055,0.4548,3748.3,3748.1,0.1336]
[1753538251251,2.80127086,3748.6,3748.0,0.001]
[1753538251456,30.0,3748.2,3748.0,0.001]
[1753538251754,36.02121846,3748.1,3748.0,0.001]
[1753538252198,36.15481846,3748.1,3748.0,0.001]
[1753538253795,32.5586,3748.1,3748.0,0.001]
[1753538254108,2.425,3748.1,3748.0,0.9361]
[1753538254305,2.425,3748.1,3748.0,1.3927202]
[1753538254874,2.425,3748.1,3748.0,4.06080984]
[1753538255078,2.425,3748.1,3748.0,1.3927202]
[1753538256078,2.425,3748.1,3748.0,0.9337202]
[1753538256324,2.425,3748.1,3748.0,0.4576202]
[1753538256609,2.425,3748.1,3748.0,0.001]
[1753538256817,3.3532,3748.1,3748.0,0.001]
[1753538258613,2.425,3748.1,3748.0,0.001]
[1753538259014,2.425,3748.1,3748.0,0.4771]
[1753538259214,0.1336,3748.4,3748.0,0.4771]
[1753538259415,2.425,3748.3,3748.1,3.12701606]
[1753538259786,2.425,3748.3,3748.2,0.4761]
[1753538261005,30.0,3748.1,3748.0,0.001]
[1753538261518,30.9282,3748.1,3748.0,0.001]
[1753538261988,0.9282,3748.1,3748.0,0.001]
[1753538262194,30.9282,3748.1,3748.0,0.001]
[1753538263000,0.9282,3748.1,3748.0,0.001]